bitfinex-derivatives/quotes_SOLF0:USTF0_20250623
["timestamp","ask_amount","ask_price","bid_price","bid_amount"]
[1750691918788,7.4094,134.91,134.88,8.0428492]
[1750691919084,38.78,134.93,134.88,8.0428492]
[1750691919283,7.4089,134.92,134.88,7.4103]
[1750691919480,41.1405,134.95,134.89,8.0428492]
[1750691919883,7.4092,134.91,134.89,8.0428492]
[1750691920084,41.1405,134.95,134.89,8.0428492]
[1750691920389,7.4093,134.91,134.89,8.0428492]
[1750691921785,7.4093,134.91,134.87,15.4537492]
[1750691922388,7.4093,134.91,134.88,7.4106]
[1750691922883,38.78,134.95,134.89,8.0428492]
[1750691923084,678.48,134.98,134.92,8.0428492]
[1750691923685,678.48,134.98,134.9,2.3843]
[1750691923883,7.4065,134.96,134.93,8.0428492]
[1750691924083,678.48,134.98,134.93,8.0428492]
[1750691924290,38.78,134.98,134.93,8.0428492]
[1750691924994,7.4061,134.97,134.93,15.4504492]
[1750691925503,7.4063,134.96,134.93,15.4504492]
[1750691925699,38.78,134.98,134.93,8.0428492]
[1750691926498,7.4069,134.95,134.93,8.0428492]
[1750691927299,38.78,134.98,134.92,8.0428492]
[1750691927492,8.0428492,134.97,134.92,8.0428492]
[1750691927686,8.0428492,134.97,134.9,46.8228492]
[1750691927891,10.4554492,134.97,134.9,46.8228492]
[1750691928701,7.4085,134.92,134.9,46.8228492]
[1750691930204,7.409,134.91,134.9,46.8228492]
[1750691930398,38.76,134.95,134.9,46.8228492]
[1750691930898,38.76,134.98,134.9,38.78]
[1750691931097,38.76,134.98,134.93,8.0428492]
[1750691931699,7.4066,134.96,134.93,8.0428492]
[1750691931904,38.76,134.98,134.93,8.0428492]
[1750691932103,38.76,134.98,134.95,8.0428492]
[1750691932306,7.4057,134.97,134.95,8.0428492]
[1750691933601,46.1654,134.98,134.95,8.0428492]
[1750691933900,46.1654,134.98,134.95,15.4495492]
[1750691934100,7.4054,134.98,134.95,15.4495492]
[1750691934609,41.2639,135.01,134.96,7.4062]
[1750691934816,38.76,135.01,134.97,8.0428492]
[1750691936407,7.4043,135.0,134.97,15.4481492]
[1750691937110,46.1638,135.01,134.97,15.4481492]
[1750691937308,7.4038,135.01,134.99,8.0428492]
[1750691937608,38.76,135.04,134.99,8.0428492]
[1750691938707,7.4033,135.02,134.99,8.0428492]
[1750691940111,7.4033,135.02,134.99,15.4473492]
[1750691940306,7.4036,135.01,134.99,8.0428492]
[1750691941805,7.4032,135.02,134.99,8.0428492]
[1750691942009,38.76,135.04,134.99,8.0428492]
[1750691942711,7.4033,135.02,134.99,8.0428492]
[1750691943508,38.76,135.04,134.96,46.8028492]
[1750691943509,46.8028492,135.04,134.96,38.76]
[1750691943710,8.0428492,135.02,134.96,8.0428492]
[1750691943920,38.72,135.01,134.96,8.0428492]
[1750691944114,38.72,135.02,134.96,15.4487492]
[1750691944319,38.72,135.02,134.96,8.0428492]
[1750691945708,7.4049,134.99,134.96,8.0428492]
[1750691945915,38.72,135.02,134.98,8.0428492]
[1750691946407,7.4038,135.01,134.98,8.0428492]
[1750691947114,681.2076,135.05,135.0,8.0428492]
[1750691947917,7.4034,135.02,135.0,8.0428492]
[1750691948113,681.2076,135.05,135.0,8.0428492]
[1750691948412,49.1530492,135.07,135.0,15.4465492]
[1750691948617,49.1530492,135.07,135.0,8.0428492]
[1750691949010,7.4027,135.03,135.0,15.4467492]
[1750691949309,49.1530492,135.07,135.0,8.0428492]
[1750691949714,38.72,135.07,135.02,8.0428492]
[1750691950308,7.4017,135.05,135.02,8.0428492]
[1750691950813,38.72,135.07,135.02,8.0428492]
[1750691951115,7.4011,135.06,135.02,15.4453492]
[1750691951412,7.4011,135.06,135.04,8.0428492]
[1750691952115,7.4004,135.07,135.04,8.0428492]
[1750691952512,228.19199909,135.08,135.02,38.72]
[1750691952513,7.3994,135.09,135.06,8.0428492]
[1750691952918,7.3994,135.09,135.06,15.4433492]
[1750691953516,7.3994,135.09,135.06,8.0428492]
[1750691953717,644.4106,135.12,135.05,46.7628492]
[1750691954224,7.4006,135.07,135.05,46.7628492]
[1750691955325,7.4007,135.06,135.05,46.7628492]
[1750691955524,7.4007,135.06,135.05,8.0428492]
[1750691956828,7.4005,135.07,135.05,8.0428492]
[1750691957827,2.3808,135.12,135.05,46.7428492]
[1750691958028,2.3808,135.12,135.05,38.7]
[1750691958226,2.3808,135.12,135.07,8.0428492]
[1750691958425,7.3994,135.09,135.07,8.0428492]
[1750691958926,7.3989,135.1,135.07,15.4426492]
[1750691959126,2.3808,135.12,135.07,8.0428492]
[1750691959524,7.3995,135.09,135.07,8.0428492]
[1750691959726,2.3808,135.12,135.07,8.0428492]
[1750691959929,7.3997,135.08,135.07,8.0428492]
[1750691960125,10.4236492,135.12,135.05,46.7428492]
[1750691961229,7.4007,135.06,135.05,46.7428492]
[1750691961431,7.4007,135.06,135.04,7.4016]
[1750691961732,7.4011,135.06,135.03,7.4021]
[1750691961926,7.4011,135.06,135.02,46.7428492]
[1750691962432,7.4011,135.06,135.03,7.4021]
[1750691962930,46.7428492,135.1,135.05,7.4009]
[1750691963332,7.4001,135.08,135.04,8.0428492]
[1750691963524,7.4001,135.08,135.05,7.4009]
[1750691963725,38.7,135.1,135.05,7.4009]
[1750691963929,7.3999,135.08,135.05,7.4009]
[1750691964229,7.3999,135.08,135.05,15.4437492]
[1750691965133,7.4003,135.07,135.05,15.4437492]
[1750691965638,7.4003,135.07,135.05,8.0428492]
[1750691966230,7.4007,135.06,135.05,8.0428492]
[1750691966533,7.4007,135.06,135.03,15.4449492]
[1750691968430,7.4004,135.07,135.03,15.4449492]
[1750691968823,38.7,135.1,135.04,7.4017]
[1750691969031,8.0428492,135.09,135.02,38.7]
[1750691969234,8.0428492,135.09,135.01,8.0428492]
[1750691969432,41.0857,135.1,135.01,8.0428492]
[1750691969433,8.0428492,135.07,135.01,8.0428492]
[1750691969629,7.4026,135.03,135.01,8.0428492]
[1750691970336,8.0428492,135.06,134.99,46.7428492]
[1750691970532,10.5335492,135.06,134.99,46.7428492]
[1750691971539,10.5335492,135.06,134.99,54.1469492]
[1750691971740,8.0428492,135.02,134.96,2.2819]
[1750691972038,46.7428492,135.02,134.95,8.0428492]
[1750691972242,8.0428492,135.0,134.94,38.7]
[1750691972441,7.4057,134.97,134.94,46.107]
[1750691972735,8.0428492,135.0,134.94,38.7]
[1750691972736,38.7,134.99,134.94,38.7]
[1750691973038,38.7,134.99,134.94,8.0428492]
[1750691974042,38.68,135.02,134.96,8.0428492]
[1750691974338,7.4038,135.01,134.96,8.0428492]
[1750691974533,7.4038,135.01,134.97,7.4054]
[1750691975335,7.404,135.0,134.97,7.4054]
[1750691977738,7.404,135.0,134.98,8.0428492]
[1750691977946,10.5335492,135.06,134.98,8.0428492]
[1750691978135,49.2135492,135.06,135.0,8.0428492]
[1750691978933,7.4036,135.01,134.98,8.0428492]
[1750691979636,7.4032,135.02,134.98,8.0428492]
[1750691980137,46.0827,135.03,134.98,8.0428492]
[1750691980533,10.5335492,135.06,134.97,38.68]
[1750691980534,49.2135492,135.06,135.0,15.4465492]
[1750691980939,49.2135492,135.06,134.98,7.2346]
[1750691981239,49.2135492,135.06,135.0,8.0428492]
[1750691982844,7.4028,135.03,135.0,15.4468492]
[1750691983440,49.2135492,135.06,135.0,8.0428492]
[1750691984148,49.2135492,135.06,135.01,7.4031]
[1750691984551,7.4022,135.04,135.01,7.4031]
[1750691984753,49.2135492,135.06,135.0,15.4465492]
[1750691985144,7.4027,135.03,135.0,15.4465492]
[1750691985339,49.2135492,135.06,135.0,8.0428492]
[1750691985840,7.4027,135.03,135.0,15.4467492]
[1750691986147,7.4021,135.04,135.0,8.0428492]
[1750691986353,49.2135492,135.06,135.01,7.4033]
[1750691986543,49.2135492,135.06,135.0,8.0428492]
[1750691986743,7.4029,135.03,135.0,15.4467492]
[1750691987453,7.403,135.02,135.0,8.0428492]
[1750691987650,49.2135492,135.06,135.0,8.0428492]
[1750691987844,7.4026,135.03,135.0,15.4467492]
[1750691988542,7.403,135.02,135.0,8.0428492]
[1750691991962,7.403,135.02,134.97,47.83052544]
[1750691991963,46.7228492,135.02,134.97,9.15052544]
[1750691992254,8.0428492,135.0,134.94,47.83052544]
[1750691992446,7.406,134.97,134.94,38.68]
[1750691992646,8.0428492,135.0,134.94,47.83052544]
[1750691992846,7.4059,134.97,134.94,38.68]
[1750691993152,8.0428492,135.0,134.94,38.68]
[1750691993350,38.68,135.02,134.96,8.03281398]
[1750691993554,7.4049,134.99,134.96,8.03281398]
[1750691993758,38.68,135.02,134.96,8.03281398]
[1750691993950,46.71281398,135.02,134.97,7.4054]
[1750691994151,46.71281398,135.02,134.96,8.03281398]
[1750691994552,38.68,135.02,134.96,8.03281398]
[1750691994754,7.4037,135.01,134.96,8.03281398]
[1750691995154,38.68,135.02,134.99,7.4043]
[1750691995551,38.68,135.02,134.98,8.03281398]
[1750691995858,7.4037,135.01,134.98,15.43771398]
[1750691996552,38.68,135.02,134.97,38.68]
[1750691996856,38.68,135.02,134.96,8.03281398]
[1750691997056,7.4041,135.0,134.97,7.4054]
[1750691999053,38.68,135.02,134.98,7.405]
[1750691999255,38.68,135.02,134.98,8.03281398]
[1750691999851,7.4038,135.01,134.98,15.43751398]
[1750692000249,38.68,135.02,134.98,8.03281398]
[1750692000455,46.0832,135.02,134.99,7.4043]
[1750692002154,8.03281398,135.08,135.0,8.03281398]
[1750692002361,46.71281398,135.08,135.0,8.03281398]
[1750692002556,46.71281398,135.08,135.0,46.71281398]
[1750692003073,8.03281398,135.04,134.98,8.03281398]
[1750692003256,46.71281398,135.04,134.98,15.43771398]
[1750692003863,7.4038,135.01,134.98,15.43771398]
[1750692004660,46.71281398,135.04,134.98,15.43771398]
[1750692004966,7.4042,135.0,134.97,54.11821398]
[1750692005359,8.03281398,135.0,134.95,2.2657]
[1750692005568,8.03567595,135.0,134.95,2.2657]
[1750692005762,7.4052,134.98,134.95,9.6722]
[1750692006362,7.4046,134.99,134.96,7.4057]
[1750692006559,38.66,135.01,134.97,8.03567595]
[1750692007165,38.66,135.01,134.98,7.4049]
[1750692007364,46.69567595,135.04,134.97,8.03567595]
[1750692007670,7.4032,135.02,134.99,7.4042]
[1750692008367,7.4032,135.02,134.98,16.55542544]
[1750692008569,7.4032,135.02,134.98,9.15052544]
[1750692008771,38.66,135.04,134.99,8.03567595]
[1750692009265,7.4032,135.02,134.99,15.43997595]
[1750692009463,7.4032,135.02,134.99,8.03567595]
[1750692009966,7.4032,135.02,134.99,15.44017595]
[1750692011062,7.4032,135.02,134.99,7.4045]
[1750692011568,7.4027,135.03,135.0,7.4035]
[1750692011769,38.66,135.04,134.98,17.18620139]
[1750692012271,38.66,135.04,134.99,7.4041]
[1750692012974,7.4027,135.03,135.0,7.404]
[1750692013562,46.0621,135.04,135.01,7.4035]
[1750692013769,8.03567595,135.06,135.0,17.18620139]
[1750692013962,38.66,135.06,135.0,17.18620139]
[1750692014164,7.4015,135.05,135.02,7.4027]
[1750692014359,38.66,135.06,135.02,15.43837595]
[1750692015073,7.4014,135.05,135.02,15.43837595]
[1750692015274,38.66,135.06,135.0,19.68220139]
[1750692015576,46.69567595,135.06,134.99,47.81052544]
[1750692015874,7.4028,135.03,135.0,7.404]
[1750692016475,46.69567595,135.06,134.99,55.21492544]
[1750692017070,8.03567595,135.04,134.97,9.15052544]
[1750692017271,8.03567595,135.02,134.97,9.15052544]
[1750692017472,7.4044,135.0,134.97,16.55592544]
[1750692017661,8.03567595,135.02,134.96,50.28652544]
[1750692018071,7.4049,134.99,134.96,57.69242544]
[1750692018271,7.4049,134.99,134.96,50.28652544]
[1750692019475,7.4049,134.99,134.96,57.69242544]
[1750692019972,8.03567595,135.02,134.97,7.4054]
[1750692019973,7.4043,135.0,134.97,7.4054]
[1750692020173,8.03567595,135.02,134.97,9.15052544]
[1750692020477,8.03567595,135.02,134.97,16.55592544]
[1750692020774,46.67567595,135.03,134.97,16.55592544]
[1750692021174,46.67567595,135.03,134.97,9.15052544]
[1750692021369,38.64,135.03,134.98,9.15052544]
[1750692021569,7.4038,135.01,134.98,9.15052544]
[1750692021767,7.4038,135.01,134.98,16.55542544]
[1750692022374,7.4033,135.02,134.98,16.55542544]
[1750692022567,38.64,135.03,134.98,16.55542544]
[1750692023883,38.66,135.08,135.02,8.03567595]
[1750692024269,7.4008,135.06,135.02,15.43827595]
[1750692024563,38.66,135.08,135.02,8.03567595]
[1750692024768,38.66,135.08,135.02,17.18620139]
[1750692025487,38.66,135.08,135.04,8.03567595]
[1750692025969,38.66,135.08,135.05,7.4013]
[1750692026369,38.66,135.08,135.04,7.4016]
[1750692026370,46.0597,135.08,135.04,7.4016]
[1750692027576,38.66,135.08,135.02,50.17632544]
[1750692027774,38.66,135.08,135.02,41.0258]
[1750692028777,7.401,135.06,135.02,48.4284]
[1750692029368,7.4005,135.07,135.02,41.0258]
[1750692029775,38.66,135.08,135.02,41.0258]
[1750692030777,7.4008,135.06,135.03,7.4021]
[1750692031276,7.4017,135.05,135.01,7.4032]
[1750692031576,7.4017,135.05,135.0,23.8421163]
[1750692031773,38.66,135.08,135.0,23.8421163]
[1750692032079,12.22559086,135.07,135.0,12.22559086]
[1750692032379,7.4024,135.03,135.0,19.62939086]
[1750692032678,38.64,135.05,134.99,47.79052544]
[1750692032992,12.25075221,135.0,134.94,9.15052544]
[1750692033174,12.25075221,135.0,134.89,9.15052544]
[1750692033175,12.25075221,134.95,134.89,9.15052544]
[1750692033474,6.83824545,135.02,134.92,12.24638404]
[1750692033475,2.77198223,134.98,134.92,12.24638404]
[1750692033782,50.87862952,135.0,134.93,11.59232544]
[1750692034080,7.4066,134.96,134.93,2.4418]
[1750692034682,38.64,135.0,134.93,14.68042952]
[1750692035884,7.406,134.97,134.93,22.08802952]
[1750692037381,39.06,135.03,134.95,12.23862952]
[1750692037681,7.404,135.01,134.98,12.23862952]
[1750692038875,39.06,135.03,134.98,12.23862952]
[1750692040385,7.404,135.01,134.98,12.23862952]
[1750692043175,7.4042,135.0,134.98,12.23862952]
[1750692044787,39.06,135.03,134.97,12.23862952]
[1750692045378,7.4044,135.0,134.97,12.23862952]
[1750692045579,39.06,135.03,134.97,12.23862952]
[1750692045884,7.4043,135.0,134.97,12.23862952]
[1750692046391,7.4052,134.98,134.96,41.5426]
[1750692046585,12.23862952,135.02,134.95,51.31862952]
[1750692046889,7.4056,134.98,134.95,51.31862952]
[1750692047389,12.23862952,135.02,134.95,39.08]
[1750692047782,12.23862952,135.02,134.95,46.4867]
[1750692048183,7.4054,134.98,134.95,46.4867]
[1750692048387,12.23862952,135.02,134.96,7.4062]
[1750692048789,7.4049,134.99,134.96,7.4062]
[1750692052393,7.4042,135.0,134.97,7.4054]
[1750692052782,12.23862952,135.02,134.94,60.46915496]
[1750692052985,7.4043,135.0,134.96,7.4059]
[1750692053294,7.4043,135.0,134.94,60.46915496]
[1750692053494,7.4038,135.01,134.98,7.4051]
[1750692053992,41.52,135.03,134.97,7.4054]
[1750692054194,41.52,135.03,134.96,12.23862952]
[1750692054793,39.06,135.03,134.96,12.23862952]
[1750692055093,7.4038,135.01,134.98,7.4051]
[1750692055495,7.4033,135.02,134.98,7.4051]
[1750692055693,7.4033,135.02,134.98,19.64372952]
[1750692055890,2.3154,135.07,135.0,12.23862952]
[1750692056292,7.4016,135.05,135.0,12.23862952]
[1750692056492,7.4016,135.05,135.01,7.403]
[1750692057888,2.3154,135.07,135.01,7.403]
[1750692059495,7.4016,135.05,135.01,7.403]
[1750692059693,2.3154,135.07,135.02,7.4029]
[1750692059893,7.401,135.06,135.02,12.23862952]
[1750692060087,39.08,135.08,135.02,12.23862952]
[1750692060286,639.42,135.1,135.02,51.29862952]
[1750692060488,7.4,135.08,135.02,51.29862952]
[1750692060792,43.7332,135.11,135.05,7.401]
[1750692060793,39.06,135.11,135.05,7.401]
[1750692060990,7.3994,135.09,135.05,7.401]
[1750692061397,7.4,135.08,135.04,19.64022952]
[1750692061587,18.03123957,135.1,135.02,39.06]
[1750692061792,12.23862952,135.1,135.02,39.06]
[1750692062002,12.23862952,135.1,135.03,7.4022]
[1750692062199,7.4006,135.07,135.03,7.4022]
[1750692062699,7.401,135.06,135.03,7.4022]
[1750692063200,7.4005,135.07,135.04,7.4018]
[1750692064607,8.02412279,135.08,135.03,8.02412279]
[1750692065004,8.02412279,135.08,135.02,39.06]
[1750692065206,46.72412279,135.08,135.02,39.06]
[1750692065402,7.4018,135.05,135.02,7.4027]
[1750692065906,8.02412279,135.06,135.0,38.7]
[1750692066903,7.4027,135.03,135.01,7.4033]
[1750692069406,8.02412279,135.06,135.0,38.7]
[1750692069603,7.4035,135.01,134.99,2.4891]
[1750692069803,8.02412279,135.04,134.97,46.72412279]
[1750692070005,7.4044,135.0,134.97,46.72412279]
[1750692070513,7.4044,135.0,134.98,7.4052]
[1750692071619,8.02412279,135.04,134.97,54.12952279]
[1750692071813,8.02412279,135.02,134.97,46.72412279]
[1750692072015,8.02412279,135.02,134.95,15.13022279]
[1750692072016,46.72412279,135.02,134.95,15.13022279]
[1750692072719,7.4054,134.98,134.96,7.406]
[1750692073018,7.4054,134.98,134.95,15.13022279]
[1750692073420,7.4047,134.99,134.95,15.13022279]
[1750692073817,46.72412279,135.02,134.95,15.13022279]
[1750692074019,46.72412279,135.02,134.96,7.406]
[1750692074822,7.4057,134.97,134.95,22.53672279]
[1750692075011,7.4057,134.97,134.95,10.34122279]
[1750692075214,49.02382279,135.02,134.95,10.34122279]
[1750692076207,7.406,134.97,134.95,2.3171]
[1750692076918,7.4055,134.98,134.95,2.3171]
[1750692077116,49.02382279,135.02,134.95,2.3171]
[1750692077306,49.02382279,135.02,134.95,9.7236]
[1750692078224,7.406,134.97,134.95,2.3171]
[1750692078526,49.02382279,135.02,134.93,38.7]
[1750692078527,8.02412279,134.98,134.93,38.7]
[1750692079416,7.4074,134.94,134.93,38.7]
[1750692079624,8.02412279,134.98,134.93,38.7]
[1750692079920,7.4072,134.95,134.93,38.7]
[1750692080620,7.4072,134.95,134.93,46.1079]
[1750692081119,38.7,134.99,134.94,7.407]
[1750692081321,38.7,134.99,134.93,46.72412279]
[1750692081615,7.4062,134.97,134.93,46.72412279]
[1750692081812,8.02412279,134.98,134.93,46.72412279]
[1750692082012,8.02412279,134.98,134.93,38.7]
[1750692082221,7.4073,134.95,134.93,38.7]
[1750692082418,8.02412279,134.98,134.93,38.7]
[1750692082719,7.4078,134.94,134.91,646.5374]
[1750692083112,8.02412279,134.96,134.91,641.8558]
[1750692083312,8.02412279,134.96,134.91,2.3358]
[1750692083914,7.4075,134.94,134.91,9.7445]
[1750692084217,8.02412279,134.92,134.89,9.15052544]
[1750692084424,15.43282279,134.92,134.87,9.15052544]
[1750692084612,38.7,134.93,134.87,8.02412279]
[1750692084919,2.4961,134.95,134.89,8.02412279]
[1750692085120,7.4079,134.93,134.9,7.4092]
[1750692085321,46.72412279,134.96,134.89,8.02412279]
[1750692085618,38.7,134.96,134.91,15.43282279]
[1750692086015,38.7,134.96,134.91,7.4087]
[1750692086818,7.4076,134.94,134.91,7.4087]
[1750692087018,38.7,134.96,134.91,7.4087]
[1750692087217,38.7,134.96,134.9,8.02412279]
[1750692087218,7.4084,134.93,134.9,15.43342279]
[1750692087821,7.4085,134.92,134.9,15.43342279]
[1750692088125,38.7,134.96,134.9,8.02412279]
[1750692088318,7.4085,134.92,134.9,8.02412279]
[1750692088918,7.4085,134.92,134.89,7.4098]
[1750692089108,7.409,134.91,134.88,200.35452279]
[1750692089311,7.409,134.91,134.88,192.94412279]
[1750692089505,7.4089,134.92,134.89,7.41]
[1750692089713,8.02412279,134.95,134.88,192.94412279]
[1750692090514,8.02412279,134.95,134.88,184.92]
[1750692090716,8.02412279,134.93,134.88,146.22]
[1750692091014,7.4099,134.9,134.88,146.22]
[1750692091823,7.4092,134.91,134.88,7.4105]
[1750692092122,46.74412279,134.93,134.87,8.02412279]
[1750692092513,7.4096,134.9,134.87,15.43502279]
[1750692092823,46.74412279,134.93,134.85,11.43592544]
[1750692093120,8.02412279,134.87,134.82,9.15052544]
[1750692093324,8.02412279,134.85,134.79,17.17464823]
[1750692093519,7.414,134.82,134.78,9.8511]
[1750692093717,8.02412279,134.83,134.76,17.17464823]
[1750692093918,8.02412279,134.81,134.75,46.74412279]
[1750692094116,46.74412279,134.81,134.74,8.02412279]
[1750692094315,8.02412279,134.79,134.73,7.1923]
[1750692094512,8.02412279,134.79,134.74,8.02412279]
[1750692094714,8.02412279,134.79,134.75,7.4175]
[1750692094914,38.72,134.81,134.74,8.02412279]
[1750692094915,46.74412279,134.81,134.74,8.02412279]
[1750692095117,7.4153,134.8,134.77,7.4164]
[1750692095318,46.74412279,134.81,134.77,7.4164]
[1750692095720,7.4154,134.8,134.76,15.44112279]
[1750692096124,7.4154,134.8,134.76,7.417]
[1750692096322,7.4158,134.79,134.75,7.4176]
[1750692096627,38.72,134.81,134.73,7.1923]
[1750692096821,38.72,134.81,134.74,7.4181]
[1750692097021,12.27738953,134.8,134.73,7.1923]
[1750692097926,7.4173,134.76,134.73,7.1923]
[1750692098622,38.8,134.78,134.73,7.1923]
[1750692099321,38.8,134.78,134.73,14.611]
[1750692099526,38.8,134.78,134.73,4.8159]
[1750692099824,7.4176,134.76,134.73,4.8159]
[1750692100030,51.07738953,134.78,134.73,4.8159]
[1750692100216,51.07738953,134.78,134.73,2.4352]
[1750692100927,51.07738953,134.78,134.72,38.72]
[1750692101325,12.27738953,134.76,134.7,4.8224]
[1750692101630,38.82,134.75,134.7,2.3289]
[1750692101824,7.4186,134.74,134.7,9.7491]
[1750692102030,38.82,134.75,134.7,9.7491]
[1750692102228,46.2379,134.75,134.71,7.4196]
[1750692102434,38.82,134.75,134.7,2.3289]
[1750692102622,38.82,134.75,134.71,12.27738953]
[1750692102821,7.4183,134.75,134.71,7.4199]
[1750692103026,38.82,134.76,134.7,2.3289]
[1750692103229,38.82,134.75,134.7,2.3289]
[1750692103630,7.4186,134.74,134.7,9.7494]
[1750692106326,38.82,134.75,134.69,38.82]
[1750692106526,38.82,134.75,134.67,12.27738953]
[1750692106725,7.4192,134.73,134.69,7.4207]
[1750692106921,7.4192,134.73,134.67,12.27738953]
[1750692107127,12.27738953,134.77,134.69,12.27738953]
[1750692107331,7.4186,134.74,134.69,12.27738953]
[1750692107828,7.4189,134.74,134.69,12.27738953]
[1750692108133,38.84,134.76,134.69,12.27738953]
[1750692108538,7.4181,134.75,134.71,7.4197]
[1750692109034,7.4181,134.75,134.72,7.4193]
[1750692109237,46.2574,134.76,134.72,7.4193]
[1750692109423,46.2574,134.76,134.69,12.27738953]
[1750692109628,38.84,134.76,134.71,12.27738953]
[1750692109837,38.84,134.78,134.71,12.27738953]
[1750692110138,7.417,134.77,134.74,7.4181]
[1750692110726,46.2562,134.78,134.75,7.4177]
[1750692110926,38.84,134.78,134.73,12.27738953]
[1750692111132,14.70798953,134.83,134.75,12.27738953]
[1750692111337,38.84,134.81,134.75,12.27738953]
[1750692111832,7.4164,134.78,134.73,4.7415]
[1750692112037,7.4164,134.78,134.73,17.01888953]
[1750692112227,38.84,134.81,134.75,12.27738953]
[1750692112428,7.4152,134.8,134.75,12.27738953]
[1750692112732,38.84,134.81,134.75,12.27738953]
[1750692114237,51.11738953,134.81,134.75,12.27738953]
[1750692114635,7.4159,134.79,134.75,12.27738953]
[1750692115034,7.4159,134.79,134.75,19.69488953]
[1750692115237,7.4159,134.79,134.75,12.27738953]
[1750692116033,7.4163,134.78,134.75,12.27738953]
[1750692116238,38.84,134.81,134.74,8.05889751]
[1750692116239,8.05889751,134.8,134.74,8.05889751]
[1750692116439,8.05889751,134.8,134.74,15.47709751]
[1750692116635,7.417,134.77,134.74,15.47709751]
[1750692116840,8.05889751,134.8,134.74,15.47709751]
[1750692117439,8.05889751,134.78,134.72,49.34929751]
[1750692117935,7.4172,134.77,134.72,49.34929751]
[1750692118135,8.05889751,134.78,134.72,49.34929751]
[1750692118440,46.89889751,134.78,134.72,49.34929751]
[1750692120033,7.4181,134.75,134.72,48.7096]
[1750692120432,46.89889751,134.78,134.72,48.7096]
[1750692120433,46.89889751,134.78,134.72,7.4192]
[1750692120633,8.05889751,134.76,134.69,43.495]
[1750692120941,8.05889751,134.74,134.69,38.84]
[1750692121333,8.05889751,134.74,134.68,2.2966]
[1750692121845,38.84,134.75,134.68,2.2966]
[1750692122033,8.05889751,134.77,134.71,8.05889751]
[1750692122231,8.05889751,134.8,134.73,8.05889751]
[1750692122434,7.4162,134.78,134.73,8.05889751]
[1750692122641,49.39509751,134.81,134.75,8.05889751]
[1750692122837,46.89889751,134.81,134.75,8.05889751]
[1750692123338,7.4154,134.8,134.75,8.05889751]
[1750692123737,46.89889751,134.81,134.75,8.05889751]
[1750692124247,7.4159,134.79,134.75,8.05889751]
[1750692124443,46.89889751,134.81,134.75,8.05889751]
[1750692124936,38.84,134.81,134.75,8.05889751]
[1750692125143,46.89889751,134.81,134.75,8.05889751]
[1750692125443,7.4162,134.78,134.75,15.47639751]
[1750692126439,7.4159,134.79,134.76,7.4172]
[1750692126839,46.89889751,134.81,134.75,8.05889751]
[1750692127040,7.4164,134.78,134.75,15.47639751]
[1750692128144,7.4159,134.79,134.76,7.4172]
[1750692129242,38.84,134.81,134.75,10.47789751]
[1750692129550,38.84,134.81,134.77,8.05889751]
[1750692130546,7.4154,134.8,134.77,15.47559751]
[1750692131642,38.84,134.81,134.77,8.05889751]
[1750692132034,8.05889751,134.8,134.74,46.89889751]
[1750692132239,8.05889751,134.8,134.73,8.05889751]
[1750692132642,7.4162,134.78,134.75,15.47629751]
[1750692134344,7.4162,134.78,134.75,8.05889751]
[1750692134544,7.4168,134.77,134.75,8.05889751]
[1750692134852,8.05889751,134.8,134.75,15.47669751]
[1750692135048,7.4164,134.78,134.75,15.47669751]
[1750692135239,8.05889751,134.8,134.75,8.05889751]
[1750692135742,7.4168,134.77,134.75,8.05889751]
[1750692135950,8.05889751,134.8,134.75,8.05889751]
[1750692136246,7.4173,134.76,134.74,38.82]
[1750692136445,8.05889751,134.79,134.74,38.82]
[1750692136646,7.4177,134.76,134.73,15.47749751]
[1750692137049,7.4179,134.75,134.73,15.47749751]
[1750692137747,7.4175,134.76,134.73,15.47749751]
[1750692138549,8.05889751,134.79,134.73,15.47749751]
[1750692138751,11.61224552,134.78,134.74,7.4183]
[1750692138944,7.4175,134.76,134.73,8.05889751]